bitfinex-derivatives/quotes_SOLF0:USTF0_20241226
["timestamp","ask_amount","ask_price","bid_price","bid_amount"]
[1735202327856,19.38921624,188.95,188.76,13.7907]
[1735202328269,11.43904455,188.97,188.8,19.38921624]
[1735202328458,11.43904455,188.97,188.8,22.03961624]
[1735202328663,1.0,188.97,188.8,19.38921624]
[1735202328860,1.0,188.97,188.82,2.6501]
[1735202329061,1.0,188.97,188.8,19.38921624]
[1735202329256,4.9,188.98,188.8,19.38921624]
[1735202329462,4.9,188.98,188.8,22.03961624]
[1735202329859,4.9,188.98,188.8,19.38921624]
[1735202330961,4.9,188.98,188.76,13.7907]
[1735202331259,4.9,188.98,188.77,22.04011624]
[1735202331260,19.38921624,188.94,188.77,22.04011624]
[1735202331859,19.38921624,188.94,188.77,19.38921624]
[1735202332054,19.38921624,188.9,188.76,8.8907]
[1735202332254,7.8662,188.89,188.76,2.9465]
[1735202332462,10.7494,188.89,188.76,2.9465]
[1735202335962,4.9,188.89,188.76,2.9465]
[1735202336310,4.9,188.89,188.76,5.5974]
[1735202336355,4.9,188.89,188.76,2.9465]
[1735202338273,4.9,188.89,188.7,27.10341624]
[1735202338274,5.706,188.88,188.7,27.10341624]
[1735202338471,19.38921624,188.86,188.7,22.20341624]
[1735202340164,2.9895,188.87,188.7,22.20341624]
[1735202340365,2.9895,188.87,188.7,24.85521624]
[1735202340872,2.9895,188.87,188.74,2.6513]
[1735202341376,2.9895,188.87,188.75,2.6512]
[1735202341670,2.9895,188.87,188.74,19.38921624]
[1735202341929,2.9895,188.87,188.74,22.04051624]
[1735202342373,2.9895,188.87,188.74,19.38921624]
[1735202342878,19.38921624,188.94,188.78,19.38921624]
[1735202343176,2.7505,188.99,188.82,19.38921624]
[1735202343380,8.4355,188.99,188.83,2.9884]
[1735202343783,19.38921624,188.96,188.79,5.5793]
[1735202345173,20.38921624,188.98,188.79,5.5793]
[1735202345377,4.9,188.97,188.79,5.5793]
[1735202345974,4.9,188.96,188.79,5.5793]
[1735202346171,4.9,188.96,188.8,2.6505]
[1735202346476,8.4355,188.99,188.82,19.38921624]
[1735202346777,8.4355,188.99,188.84,2.6499]
[1735202346975,8.4355,188.99,188.83,4.9]
[1735202347171,5.685,188.99,188.83,4.9]
[1735202347372,5.685,188.99,188.86,19.38921624]
[1735202347578,2.7365,189.06,188.87,2.8035]
[1735202347824,2.7365,189.06,188.91,2.6488]
[1735202348168,2.7365,189.06,188.92,2.8774]
[1735202348575,4.9,189.05,188.89,4.9]
[1735202349877,4.9,189.05,188.9,2.649]
[1735202350079,19.38921624,189.04,188.89,4.9]
[1735202350677,4.8,189.03,188.89,4.9]
[1735202351081,4.8,189.03,188.88,5.7948]
[1735202351283,19.38921624,188.96,188.79,19.38921624]
[1735202351470,2.835,188.95,188.84,2.6499]
[1735202351874,19.38921624,189.0,188.83,19.38921624]
[1735202352071,19.38921624,189.0,188.87,2.6495]
[1735202352876,19.38921624,189.0,188.83,4.8]
[1735202353144,19.38921624,188.96,188.8,2.9221]
[1735202353368,2.8467,188.95,188.8,2.9221]
[1735202353483,19.38921624,188.92,188.77,5.6296]
[1735202353867,2.9468,188.91,188.77,5.6296]
[1735202353978,4.8,188.9,188.77,2.7122]
[1735202354184,7.738,188.9,188.77,2.7122]
[1735202354575,7.738,188.9,188.77,5.3631]
[1735202354782,7.738,188.9,188.77,2.7122]
[1735202356298,7.738,188.9,188.73,4.8]
[1735202356787,7.738,188.9,188.74,2.6513]
[1735202356980,7.738,188.9,188.73,4.8]
[1735202357182,7.738,188.9,188.72,25.10041624]
[1735202358686,2.938,188.9,188.76,19.38921624]
[1735202358988,2.938,188.9,188.77,4.8]
[1735202359381,2.938,188.9,188.79,2.6505]
[1735202359684,2.938,188.9,188.78,2.7296]
[1735202360983,7.738,188.9,188.78,2.7296]
[1735202361480,7.738,188.9,188.72,25.10041624]
[1735202361881,7.738,188.9,188.76,19.38921624]
[1735202362086,7.738,188.9,188.77,2.713]
[1735202362611,27.12721624,188.9,188.77,2.713]
[1735202365088,27.12721624,188.9,188.77,5.3638]
[1735202366291,22.32721624,188.9,188.77,5.3638]
[1735202366486,2.938,188.9,188.78,2.6507]
[1735202366687,2.938,188.9,188.77,2.713]
[1735202366987,2.938,188.9,188.81,2.6504]
[1735202367388,2.8467,188.95,188.79,4.8]
[1735202367589,2.9036,188.93,188.79,4.8]
[1735202367985,2.9036,188.93,188.8,2.8288]
[1735202368191,2.9036,188.93,188.8,5.4792]
[1735202368499,2.9036,188.93,188.8,2.8288]
[1735202369793,19.38921624,188.92,188.8,2.8288]
[1735202370594,19.38921624,188.92,188.77,2.713]
[1735202371903,19.38921624,188.88,188.69,19.38921624]
[1735202372108,19.38921624,188.88,188.68,4.8]
[1735202372297,4.8,188.87,188.67,10.4629]
[1735202372609,2.7694,188.86,188.68,2.6521]
[1735202372993,2.7694,188.86,188.71,2.6516]
[1735202373198,2.7694,188.86,188.67,13.4465]
[1735202373393,2.7694,188.86,188.67,8.6465]
[1735202373600,19.38921624,188.84,188.68,2.6521]
[1735202373799,19.38921624,188.84,188.67,8.6465]
[1735202373986,2.707,188.83,188.67,8.6465]
[1735202377901,19.38921624,188.81,188.67,8.6465]
[1735202378693,19.38921624,188.78,188.66,2.14376874]
[1735202378897,2.7459,188.77,188.66,2.14376874]
[1735202382122,19.38921624,188.82,188.66,21.53298498]
[1735202382304,4.64,188.81,188.69,22.04121624]
[1735202382603,2.707,188.83,188.69,19.38921624]
[1735202382801,2.707,188.83,188.7,2.7547]
[1735202384401,2.707,188.83,188.72,19.38921624]
[1735202384608,2.707,188.83,188.73,2.6515]
[1735202385004,2.707,188.83,188.7,2.7547]
[1735202386315,19.38921624,188.82,188.7,2.7547]
[1735202386803,19.38921624,188.82,188.67,2.9211]
[1735202388334,0.84390179,188.81,188.66,21.53298498]
[1735202388516,4.64,188.8,188.66,21.53298498]
[1735202388911,4.64,188.8,188.66,2.14376874]
[1735202389314,19.38921624,188.78,188.66,2.14376874]
[1735202395945,19.38921624,188.75,188.66,2.14376874]
[1735202396109,8.4742,188.74,188.66,2.14376874]
[1735202396423,19.38921624,188.71,188.58,2.786]
[1735202396612,19.38921624,188.71,188.53,2.8895]
[1735202396613,19.38921624,188.68,188.53,2.8895]
[1735202396910,19.38921624,188.68,188.53,5.6818]
[1735202398313,19.38921624,188.67,188.52,2.55166539]
[1735202398516,7.5877,188.66,188.52,5.51006539]
[1735202399308,7.5877,188.66,188.52,2.9584]
[1735202400848,19.38921624,188.64,188.52,2.9584]
[1735202401114,7.5877,188.66,188.52,2.9584]
[1735202401315,7.5877,188.66,188.53,19.38921624]
[1735202401912,2.9477,188.66,188.52,2.9584]
[1735202402124,2.9524,188.7,188.57,19.38921624]
[1735202402334,2.9524,188.7,188.6,19.38921624]
[1735202402514,2.9222,188.72,188.6,19.38921624]
[1735202402720,4.64,188.74,188.63,19.38921624]
[1735202402925,2.9524,188.76,188.64,2.9366]
[1735202403360,2.8129,188.79,188.68,2.6522]
[1735202403373,2.9524,188.83,188.69,19.38921624]
[1735202403734,2.9524,188.83,188.7,2.831]
[1735202404143,2.9524,188.83,188.7,5.7434]
[1735202404379,2.9524,188.83,188.71,4.64]
[1735202404678,2.9524,188.83,188.7,5.7434]
[1735202404859,2.9524,188.83,188.64,2.9366]
[1735202404860,19.38921624,188.81,188.66,19.38921624]
[1735202405046,4.64,188.8,188.66,19.38921624]
[1735202406030,4.64,188.8,188.66,22.04171624]
[1735202406229,4.64,188.8,188.65,2.9124]
[1735202406623,4.64,188.8,188.67,19.38921624]
[1735202407128,2.9524,188.83,188.7,19.38921624]
[1735202407420,2.9524,188.83,188.71,2.7739]
[1735202408741,2.9524,188.83,188.73,2.6515]
[1735202409018,7.4529,188.86,188.73,2.6515]
[1735202409221,7.4529,188.86,188.74,2.854]
[1735202409520,7.4529,188.86,188.71,2.7739]
[1735202410417,19.38921624,188.84,188.71,2.7739]
[1735202410616,19.38921624,188.84,188.67,19.38921624]
[1735202410818,19.38921624,188.78,188.66,2.854]
[1735202411019,12.9785,188.77,188.63,2.9023]
[1735202411217,19.38921624,188.75,188.61,2.7687]
[1735202412723,4.58,188.74,188.57,22.29151624]
[1735202413231,19.38921624,188.71,188.55,5.4783]
[1735202415426,4.58,188.74,188.56,19.38921624]
[1735202416434,4.58,188.74,188.58,2.6535]
[1735202416627,4.58,188.74,188.56,19.38921624]
[1735202417023,19.38921624,188.75,188.56,19.38921624]
[1735202417422,19.38921624,188.75,188.6,2.6533]
[1735202418328,19.38921624,188.75,188.58,4.58]
[1735202418529,4.58,188.74,188.6,19.38921624]
[1735202419540,4.58,188.74,188.59,2.7458]
[1735202420705,4.58,188.74,188.6,2.6532]
[1735202420832,4.58,188.74,188.59,2.7458]
[1735202421749,23.96921624,188.75,188.62,2.6529]
[1735202422038,23.96921624,188.75,188.59,2.7458]
[1735202422804,23.96921624,188.75,188.6,2.6532]
[1735202422930,4.58,188.75,188.62,19.38921624]
[1735202423132,8.3985,188.77,188.65,2.6526]
[1735202423332,8.3985,188.77,188.62,19.38921624]
[1735202425242,8.3985,188.77,188.66,22.04161624]
[1735202425541,4.58,188.82,188.66,23.96921624]
[1735202425740,4.58,188.82,188.67,5.598]
[1735202425929,22.10061624,188.83,188.67,5.598]
[1735202426136,2.7114,188.83,188.7,19.38921624]
[1735202426548,2.7114,188.83,188.74,2.6513]
[1735202426737,5.735,188.84,188.7,19.38921624]
[1735202426938,5.735,188.84,188.73,19.38921624]
[1735202426939,2.9097,188.84,188.73,19.38921624]
[1735202427136,2.8253,188.89,188.76,19.38921624]
[1735202427346,19.38921624,188.93,188.77,2.8012]
[1735202427347,2.7114,188.91,188.77,2.8012]
[1735202427651,2.7114,188.91,188.77,8.4425]
[1735202428849,2.7114,188.91,188.77,11.0933]
[1735202429050,2.7114,188.91,188.79,19.38921624]
[1735202429440,2.7114,188.91,188.81,2.6503]
[1735202429640,2.8148,188.92,188.8,4.58]
[1735202429869,2.7832,188.99,188.85,19.38921624]
[1735202430344,2.7832,188.99,188.82,19.38921624]
[1735202430546,19.38921624,188.98,188.82,19.38921624]
[1735202430843,18.08379256,188.96,188.79,19.38921624]
[1735202431048,19.38921624,188.9,188.77,8.4425]
[1735202431269,5.4355,188.89,188.77,8.4425]
[1735202431938,5.4355,188.89,188.77,5.598]
[1735202433019,2.7186,188.89,188.77,24.98721624]
[1735202433158,4.58,188.94,188.8,19.38921624]
[1735202433348,4.58,188.94,188.83,2.65]
[1735202433664,4.58,188.94,188.77,5.598]
[1735202433864,4.58,188.94,188.78,19.38921624]
[1735202434344,4.58,188.94,188.83,2.6501]
[1735202434869,5.6201,188.96,188.82,23.96921624]
[1735202435641,19.38921624,188.94,188.82,4.58]
[1735202436334,5.6201,188.96,188.82,4.58]
[1735202436535,5.6201,188.96,188.82,23.96921624]
[1735202436750,2.9032,188.96,188.82,23.96921624]
[1735202437090,2.9032,188.96,188.85,2.6498]
[1735202438152,2.9032,188.96,188.86,2.6497]
[1735202439366,7.2367,188.99,188.84,4.58]
[1735202439641,2.6651,189.03,188.86,19.38921624]
[1735202439858,2.6651,189.03,188.87,5.4002]
[1735202440153,2.6651,189.03,188.9,19.38921624]
[1735202440373,2.6651,189.03,188.91,4.58]
[1735202440553,2.6651,189.03,188.94,2.6485]
[1735202441143,2.6651,189.03,188.91,4.58]
[1735202441152,2.6651,189.03,188.94,2.6484]
[1735202441247,2.6651,189.03,188.91,4.58]
[1735202441853,2.6651,189.03,188.94,2.6485]
[1735202442155,2.6651,189.03,188.91,4.58]
[1735202442352,4.58,189.11,188.96,2.6481]
[1735202442560,2.794,189.11,188.94,19.38921624]
[1735202443254,7.374,189.11,188.95,2.674]
[1735202443645,7.374,189.11,188.97,2.648]
[1735202444060,7.374,189.11,188.96,2.9185]
[1735202444254,2.794,189.11,188.97,2.7957]
[1735202444554,2.794,189.11,188.98,23.96921624]
[1735202444755,12.8662,189.16,189.03,2.6472]
[1735202444941,12.8662,189.16,189.01,19.38921624]
[1735202445351,12.8662,189.16,189.04,2.6471]
[1735202446543,12.8662,189.16,189.01,19.38921624]
[1735202446544,15.92,189.35,189.07,2.6467]
[1735202446902,19.38921624,189.2,189.05,4.58]
[1735202447260,19.38921624,189.17,189.01,4.58]
[1735202447665,19.38921624,189.17,189.02,2.6473]
[1735202447953,19.38921624,189.17,189.01,4.58]
[1735202448949,19.38921624,189.17,188.97,2.7957]
[1735202449153,19.38921624,189.17,188.98,19.38921624]
[1735202449550,19.38921624,189.14,188.98,2.6479]
[1735202449743,19.38921624,189.11,188.97,2.7957]
[1735202449945,2.6815,189.1,188.97,2.7957]
[1735202450547,2.6815,189.1,189.01,2.6475]
[1735202450749,4.58,189.12,188.98,19.38921624]
[1735202450955,5.6094,189.13,189.01,19.38921624]
[1735202451452,5.6094,189.13,189.06,2.6468]
[1735202451656,2.9418,189.13,189.01,19.38921624]
[1735202451853,7.2615,189.17,189.02,4.58]
[1735202452063,7.2615,189.17,189.04,19.38921624]
[1735202452563,4.58,189.2,189.07,19.38921624]
[1735202452820,5.4562,189.21,189.07,19.38921624]
[1735202452997,5.4562,189.21,189.1,2.6463]
[1735202453133,5.4562,189.21,189.08,5.6108]
[1735202453351,2.8958,189.26,189.13,19.38921624]
[1735202453548,2.8958,189.26,189.17,2.6453]
[1735202453944,23.96921624,189.3,189.2,2.6449]
[1735202454150,4.58,189.3,189.2,2.6449]
[1735202454550,26.86501624,189.33,189.2,2.6449]
[1735202454749,26.86501624,189.33,189.19,19.38921624]
[1735202454750,7.4758,189.33,189.19,19.38921624]
[1735202454960,7.4758,189.33,189.16,4.58]
[1735202454961,26.86501624,189.33,189.16,23.96921624]
[1735202455158,26.86501624,189.33,189.18,2.6451]
[1735202455362,26.86501624,189.33,189.19,19.38921624]
[1735202455363,7.4758,189.33,189.19,19.38921624]
[1735202455551,2.8958,189.33,189.22,19.38921624]
[1735202455748,2.6756,189.34,189.22,23.96921624]
[1735202456159,2.7886,189.35,189.22,23.96921624]
[1735202456776,22.17781624,189.35,189.19,8.564]
[1735202457151,2.7886,189.35,189.17,19.38921624]
[1735202457554,19.38921624,189.33,189.14,19.38921624]
[1735202457777,19.38921624,189.3,189.13,4.58]
[1735202458149,19.38921624,189.3,189.17,2.6453]
[1735202458406,23.96921624,189.3,189.13,4.58]
[1735202458659,19.38921624,189.26,189.1,8.564]
[1735202458859,5.5073,189.25,189.1,8.564]
[1735202460523,5.5073,189.25,189.09,22.03561624]
[1735202460715,5.5073,189.25,189.09,19.38921624]
[1735202461360,19.38921624,189.22,189.06,4.58]
[1735202461557,19.38921624,189.19,189.03,8.5378]
[1735202462257,19.38921624,189.19,189.03,5.6013]
[1735202462456,19.38921624,189.13,188.91,4.58]
[1735202462655,19.38921624,189.1,188.94,19.38921624]
[1735202462954,19.38921624,189.1,188.92,8.3307]
[1735202463257,10.026,189.12,188.94,19.38921624]
[1735202463511,4.58,189.11,188.94,19.38921624]
[1735202463858,19.38921624,189.1,188.94,19.38921624]
[1735202464113,22.21881624,189.1,188.92,8.3307]
[1735202465062,22.21881624,189.1,188.92,10.9795]
[1735202465270,19.38921624,189.06,188.92,8.3307]
[1735202465661,19.38921624,189.06,188.89,2.6491]
[1735202465960,4.58,189.07,188.88,19.38921624]
[1735202466163,4.58,189.07,188.88,26.61851624]
[1735202466566,19.38921624,189.04,188.86,8.3083]
[1735202466706,19.38921624,189.0,188.86,5.5608]
[1735202466873,7.4208,188.99,188.85,2.54804847]
[1735202467192,7.4208,188.99,188.81,4.58]
[1735202467466,19.38921624,188.97,188.81,4.58]
[1735202467863,19.38921624,188.94,188.8,2.8686]
[1735202468066,2.8038,188.93,188.8,2.8686]
[1735202468253,4.58,188.92,188.78,19.38921624]
[1735202468760,4.58,188.92,188.76,2.6922]
[1735202469468,19.38921624,188.9,188.76,2.6922]
[1735202469754,19.38921624,188.9,188.75,19.38921624]
[1735202470064,19.38921624,188.9,188.72,4.58]
[1735202470262,19.38921624,188.9,188.72,7.2316]
[1735202470464,19.38921624,188.9,188.72,4.58]
[1735202470665,19.38921624,188.9,188.71,19.38921624]
[1735202470869,19.38921624,188.86,188.71,19.38921624]
[1735202471163,7.5088,188.85,188.71,19.38921624]
[1735202471366,10.3434,188.85,188.67,19.38921624]
[1735202471669,2.7763,188.84,188.71,19.38921624]
[1735202471965,2.7763,188.84,188.75,2.6511]
[1735202472165,4.62,188.86,188.75,19.38921624]
[1735202473262,2.7763,188.9,188.75,19.38921624]
[1735202473468,2.7763,188.9,188.79,19.38921624]
[1735202473868,2.7763,188.9,188.73,24.96501624]
[1735202474168,2.7763,188.9,188.77,2.6509]
[1735202474567,7.3963,188.9,188.77,2.6509]
[1735202474954,7.3963,188.9,188.76,2.651]
[1735202475868,7.3963,188.9,188.73,24.96501624]
[1735202476062,7.3963,188.9,188.77,2.6509]
[1735202476263,7.3963,188.9,188.73,24.96501624]
[1735202477164,2.7763,188.9,188.73,24.96501624]
[1735202478566,15.91,189.21,188.73,40.87501624]
[1735202478766,24.00921624,189.0,188.81,19.38921624]
[1735202478963,19.38921624,188.96,188.81,19.38921624]
[1735202479162,19.38921624,188.92,188.8,4.62]
[1735202479370,24.00921624,188.92,188.75,4.62]
[1735202480062,19.38921624,188.88,188.73,1.05971493]
[1735202480276,19.38921624,188.84,188.73,1.05971493]
[1735202480572,4.62,188.83,188.68,19.38921624]
[1735202480874,4.62,188.83,188.68,24.00921624]
[1735202481263,4.62,188.83,188.69,2.6519]
[1735202481665,4.62,188.82,188.69,2.6519]
[1735202481963,4.62,188.82,188.65,8.3751]
[1735202482166,19.38921624,188.79,188.49,134.22938434]
[1735202482366,2.66,188.78,188.59,19.38921624]
[1735202482967,2.66,188.78,188.64,2.6527]
[1735202483267,19.38921624,188.77,188.59,19.38921624]
[1735202483470,19.38921624,188.77,188.63,2.6529]
[1735202483868,2.66,188.78,188.66,2.6524]
[1735202484178,2.66,188.78,188.63,19.38921624]
[1735202484575,2.66,188.78,188.63,22.13231624]
[1735202485270,2.66,188.78,188.67,2.6523]
[1735202485873,2.66,188.78,188.7,2.6519]
[1735202486278,2.66,188.78,188.67,19.38921624]
[1735202486668,4.62,188.81,188.67,19.38921624]
[1735202486869,5.4086,188.83,188.7,19.38921624]
[1735202489276,2.6523,188.83,188.7,19.38921624]
[1735202489683,5.6578,188.89,188.73,19.38921624]
[1735202489880,4.62,188.87,188.73,19.38921624]
[1735202490175,4.62,188.87,188.7,19.38921624]
[1735202490387,4.62,188.87,188.68,5.7518]
[1735202490745,4.62,188.87,188.72,2.6516]
[1735202490879,4.62,188.87,188.68,5.7518]
[1735202491084,19.38921624,188.96,188.78,19.38921624]
[1735202491382,19.38921624,188.92,188.75,19.38921624]
[1735202491580,24.00921624,188.92,188.75,19.38921624]
[1735202491781,24.00921624,188.92,188.8,2.6505]
[1735202492185,24.00921624,188.92,188.75,19.38921624]
[1735202492379,4.62,188.92,188.79,19.38921624]
[1735202492589,4.62,188.92,188.79,24.00921624]
[1735202492886,4.62,188.92,188.86,2.6497]
[1735202493302,2.7772,188.95,188.83,19.38921624]
[1735202493477,2.7772,188.95,188.87,2.6495]
[1735202493984,2.7772,188.95,188.9,2.6491]
[1735202494291,4.62,189.01,188.87,19.38921624]
[1735202494482,19.38921624,189.04,188.87,19.38921624]
[1735202494675,4.62,189.05,188.87,19.38921624]
[1735202494876,4.62,189.05,188.94,2.6485]
[1735202495076,4.62,189.05,188.89,4.62]
[1735202495675,4.62,189.05,188.96,2.6482]
[1735202496166,4.62,189.05,188.92,5.5239]
[1735202496678,13.1487,189.08,188.92,5.5239]
[1735202496871,8.5287,189.08,188.92,5.5239]
[1735202497080,8.5287,189.08,188.95,19.38921624]
[1735202497308,5.812,189.08,188.96,4.62]
[1735202497503,6.75695706,189.14,188.96,4.62]
[1735202497875,6.75695706,189.14,188.98,2.648]
[1735202498291,6.75695706,189.14,188.96,4.62]
[1735202498490,6.75695706,189.14,188.98,2.6478]
[1735202498932,6.75695706,189.14,188.96,4.62]
[1735202499630,6.75695706,189.14,189.04,2.6471]
[1735202499787,2.6732,189.14,189.03,19.38921624]
[1735202500197,5.8256,189.17,189.03,19.38921624]
[1735202500450,5.8256,189.17,189.03,23.96921624]
[1735202500584,5.8256,189.17,189.07,2.6466]
[1735202500890,5.8256,189.17,189.04,2.7959]
[1735202501089,5.8256,189.17,188.93,2.7262]
[1735202501090,5.8256,189.17,189.0,19.38921624]
[1735202502202,5.8256,189.17,189.03,2.6473]
[1735202502595,4.58,189.16,189.03,2.6473]
[1735202502895,4.58,189.16,189.0,19.38921624]
[1735202502896,4.58,189.16,189.04,2.6471]
[1735202503489,5.8256,189.17,189.05,2.647]
[1735202503692,4.58,189.16,189.05,2.647]
[1735202503989,4.58,189.16,189.04,19.38921624]
[1735202505396,4.58,189.16,189.02,2.6473]
[1735202505585,7.3281,189.16,189.0,19.38921624]
[1735202506494,7.3281,189.16,189.04,2.6471]
[1735202507693,7.3281,189.16,189.02,2.6474]
[1735202507993,7.3281,189.16,189.0,19.38921624]
[1735202508390,7.3281,189.16,189.03,2.6472]
[1735202508701,19.38921624,189.14,188.96,19.38921624]
[1735202508898,19.38921624,189.1,188.94,2.7009]
[1735202509093,4.58,189.09,188.94,2.7009]
[1735202509505,2.9298,189.08,188.94,2.7009]
[1735202509697,2.9298,189.08,188.9,4.58]
[1735202509698,19.38921624,189.06,188.83,28.83939482]
[1735202509892,5.3898,189.05,188.84,13.0159]
[1735202510093,19.38921624,189.02,188.84,13.0159]
[1735202510293,4.58,189.01,188.86,2.6496]
[1735202510695,4.58,189.01,188.84,8.2877]
[1735202510892,4.58,189.01,188.84,5.6379]
[1735202511297,5.58,189.01,188.84,5.6379]
[1735202511499,5.58,189.01,188.89,2.6492]
[1735202511892,5.58,189.01,188.84,5.6379]
[1735202512998,5.58,189.01,188.87,2.6494]
[1735202513203,5.58,189.01,188.84,5.6379]
[1735202513798,5.58,189.01,188.84,8.2878]
[1735202518491,19.38921624,188.98,188.88,520.0]
[1735202518692,19.38921624,188.94,188.88,508.1864]
[1735202518994,10.2057,188.93,188.88,508.1864]
[1735202519201,10.2057,188.93,188.88,499.3528]
[1735202519396,11.2057,188.93,188.88,499.3528]
[1735202519591,11.2057,188.93,188.88,492.166]
[1735202519791,19.38921624,188.9,188.88,491.2625]
[1735202520299,19.38921624,188.9,188.88,377.32457047]
[1735202520723,1.84645251,188.89,188.88,342.30752871]
[1735202521001,1.84645251,188.89,188.88,285.25416548]
[1735202521195,1.84645251,188.89,188.88,282.21076548]
[1735202521397,1.84644187,188.89,188.88,282.21076548]
[1735202522101,1.0,188.89,188.88,282.21076548]
[1735202523699,4.58,188.91,188.88,282.21076548]
[1735202523902,4.58,188.93,188.88,282.21076548]
[1735202524609,4.58,188.97,188.88,282.21076548]
[1735202526202,19.38921624,189.04,188.88,282.21076548]
[1735202526405,4.58,189.03,188.89,8.2768]
[1735202527221,55.06,189.1,188.89,27.66601624]
[1735202527403,5.42746559,189.09,188.93,19.38921624]
[1735202527603,4.58,189.09,188.93,19.38921624]
[1735202528206,31.48935799,189.08,188.91,31.48935799]
[1735202528406,31.48935799,189.08,188.92,2.6488]
[1735202528605,31.48935799,189.08,188.91,31.48935799]
[1735202530534,4.58,189.07,188.91,31.48935799]
[1735202532404,4.58,189.07,188.95,31.48935799]
[1735202532602,4.58,189.07,188.91,31.48935799]
[1735202532804,4.58,189.07,188.89,8.2768]
[1735202532805,31.48935799,189.04,188.89,8.2768]
[1735202533416,0.84780375,189.03,188.89,8.2768]
[1735202533613,0.84780375,189.03,188.89,5.5614]
[1735202533614,31.48935799,189.0,188.89,5.5614]
[1735202533804,4.58,188.99,188.88,282.21076548]
[1735202534205,5.58,188.99,188.88,282.21076548]
[1735202534610,4.58,188.99,188.89,31.48935799]
[1735202535224,4.58,189.04,188.89,31.48935799]
[1735202535720,4.58,189.05,188.9,2.649]
[1735202536416,36.06935799,189.09,188.93,34.13805799]
[1735202536612,4.58,189.09,188.94,5.5911]
[1735202536820,31.48935799,189.13,188.97,31.48935799]
[1735202537119,4.58,189.12,188.97,31.48935799]
[1735202537917,4.58,189.12,188.97,34.13735799]
[1735202538114,4.58,189.12,188.97,31.48935799]
[1735202538515,4.58,189.12,188.99,2.6478]
[1735202538720,4.58,189.12,188.97,31.48935799]
[1735202540114,4.58,189.12,188.97,36.06935799]
[1735202540815,81.53602567,189.22,189.01,31.48935799]
[1735202541021,31.48935799,189.2,189.05,31.48935799]
[1735202541220,4.58,189.19,189.06,8.4069]
[1735202541713,81.53602567,189.22,189.06,8.4069]
[1735202541910,81.53602567,189.22,189.08,2.6466]
[1735202542110,4.58,189.21,189.09,31.48935799]
[1735202542617,81.53602567,189.22,189.09,31.48935799]
[1735202544518,4.58,189.23,189.09,31.48935799]
[1735202545317,4.58,189.23,189.06,8.4069]
[1735202545626,1.0,189.22,189.06,8.4069]
[1735202546121,4.58,189.28,189.13,31.48935799]
[1735202546320,5.42890133,189.27,189.13,31.48935799]
[1735202546525,4.58,189.27,189.13,31.48935799]
[1735202547824,31.48935799,189.31,189.15,2.6456]
[1735202548024,20.50904406,189.38,189.17,31.48935799]
[1735202548222,5.4291648,189.33,189.17,31.48935799]
[1735202548416,4.58,189.33,189.17,31.48935799]
[1735202548925,81.45892487,189.39,189.17,36.06935799]
[1735202549230,4.58,189.33,189.17,38.71455799]
[1735202549421,4.58,189.33,189.17,36.06935799]
[1735202549621,81.45892487,189.39,189.21,31.48935799]
[1735202549823,4.58,189.34,189.21,31.48935799]
[1735202550018,81.45892487,189.39,189.21,31.48935799]
[1735202550219,4.58,189.38,189.24,19.31180597]
[1735202550421,4.58,189.38,189.25,2.7113]
[1735202550925,20.16116722,189.37,189.26,2.6752]
[1735202551125,19.31180597,189.37,189.26,2.6752]
[1735202551320,4.58,189.38,189.18,19.31180597]
[1735202551321,19.31180597,189.33,189.18,19.31180597]
[1735202551629,0.84912388,189.32,189.19,2.6752]
[1735202551922,4.58,189.31,189.19,2.6752]
[1735202552724,1.0,189.3,189.19,2.6752]
[1735202553628,19.31180597,189.29,189.19,2.6752]